Cogmind - Beta 11 @@@ ROGUE MODE // 2022.03.21 @ 16:23:40 Player: Rowl Result: Destroyed by Y-45 Defender with Beam Rifle Performance ------------- Evolutions (1) 500 Regions Visited (2) 400 Robots Destroyed (19) 95 Value Destroyed (382) 382 Prototype IDs (0) 0 Alien Tech Used (0) 0 Bonus (0) 0 TOTAL SCORE: 1377 Bonus ------- None Cogmind --------- Core Integrity 0/400 Matter 275/300 Energy 17/100 System Corruption 0% Temperature Warm (188) Movement Core (100) Ox1 Location -9/Materials Parts ------- > --- POWER (2) -------- (None) > --- PROPULSION (2) --- (None) > --- UTILITY (3) ------ Small Storage Unit > --- WEAPON (2) ------- Light Assault Rifle > --- INVENTORY (8) ---- Beam Cannon Peak State ------------ > --- POWER ------------ Light Nuclear Core > --- PROPULSION ------- Aluminum Leg Aluminum Leg > --- UTILITY ---------- Small Storage Unit Targeting Computer > --- WEAPON ----------- Assault Rifle Assault Rifle > --- INVENTORY -------- Ion Engine Small Laser [Rating: 9] Favorites ----------- Power Light Nuclear Core Engine Ion Engine Power Core Light Nuclear Core Propulsion Aluminum Leg Leg Aluminum Leg Utility Small Storage Unit Storage Small Storage Unit Processor Targeting Computer Weapon Beam Cannon Energy Gun Small Laser Energy Cannon Beam Cannon Ballistic Gun Assault Rifle Build | -11 -10 -9 ------- Run | Scr Mat Mat Slots Evolved 2 | . . 2 Power 1 | . . 1 Propulsion . | . . . Utility 1 | . . 1 Weapon . | . . . Parts Attached 15 | 6 4 5 Power 3 | 1 1 1 Engine 2 | 1 . 1 Core 1 | . 1 . Reactor . | . . . Propulsion 2 | 2 . . Treads . | . . . Leg 2 | 2 . . Wheel . | . . . Hover . | . . . Flight . | . . . Utility 2 | 1 1 . Device . | . . . Storage 1 | 1 . . Processor 1 | . 1 . Hackware . | . . . Protection . | . . . Artifact . | . . . Weapon 8 | 2 2 4 Energy Gun 3 | . . 3 Energy Cannon 2 | . 2 . Ballistic Gun 3 | 2 . 1 Ballistic Cannon . | . . . Launcher . | . . . Special Weapon . | . . . Impact Weapon . | . . . Slashing Weapon . | . . . Piercing Weapon . | . . . Special Melee Weapon . | . . . Unidentified Prototypes . | . . . Parts Lost 9 | . . 9 Power 2 | . . 2 Propulsion 2 | . . 2 Utility 1 | . . 1 Weapon 4 | . . 4 Highest Loss Streak 9 | . . 9 To Critical Strikes . | . . . Average Slot Usage (%) 88 | . 98 72 Engine 4 | . 7 . Core 7 | . 6 9 Leg 24 | . 28 19 Storage 12 | . 14 11 Processor 11 | . 12 9 Energy Cannon 13 | . 9 20 Ballistic Gun 11 | . 18 . Naked Turns . | . . . Heaviest Build 16 | 14 16 16 Greatest Support 20 | 20 20 20 Greatest Overweight (x) 3 | . . 3 Average Overweight (x) . | . . . Largest Inventory Capacity 8 | 8 8 8 Average Capacity 7 | 7 8 8 Most Carried 5 | 5 5 4 Average Carried 1 | . 1 2 Final Capacity 8 | 8 8 8 Final Carried 2 | . 2 1 Class Distribution -------------------- 100% | Mutant Dominant Class ---------------- Mutant | -10/Materials Mutant | -9/Materials Resources | -11 -10 -9 ----------- Run | Scr Mat Mat Matter Collected 501 | 204 222 75 Remotely . | . . . Salvage Created 526 | . 365 161 Parts 41 | . 30 11 Haulers Intercepted . | . . . Recyclers Shooed . | . . . Parts Field Recycled . | . . . Retrieved Matter . | . . . Parts Self-Destructed . | . . . Prevented . | . . . Kills | -11 -10 -9 ------- Run | Scr Mat Mat Combat Hostiles Destroyed 15 | . 8 7 Guns 8 | . 6 2 Cannons 7 | . 2 5 Classes Destroyed 5 | . 5 . Worker 1 | . 1 . Builder 1 | . 1 . Watcher 2 | . 2 . Swarmer 8 | . 3 5 Grunt 7 | . 5 2 Best Kill Streak 5 | . 4 5 Combat Bots Only 5 | . 3 5 Max Kills in Single Turn 2 | . 2 1 Gunslinging . | . . . Exploded . | . . . Melee . | . . . Uniques/NPCs Destroyed . | . . . Combat | -11 -10 -9 -------- Run | Scr Mat Mat Damage Taken 1437 | . 395 1042 Core 465 | . 65 400 Absorbed by Shields . | . . . Core Remaining (%) 87 | 100 74 . Volleys Fired 46 | . 24 22 Largest 2 | . 2 2 Hottest 125 | . 120 125 Shots Fired 88 | . 48 40 Gun 48 | . 42 6 Cannon 40 | . 6 34 Launcher . | . . . Special . | . . . Kinetic 42 | . 42 . Thermal 46 | . 6 40 Explosive . | . . . Electromagnetic . | . . . Robot Hit Streak 11 | . 11 6 Robot Miss Streak 7 | . 5 7 Penetration Max . | . . . Secondary Targets . | . . . Shots Hit Robots 42 | . 24 18 Core Hits 25 | . 15 10 Critical Kills 1 | . 1 . Critical Parts Destroyed . | . . . Critical Strikes 1 | . 1 . Destroy 1 | . 1 . Melee Attacks . | . . . Impact . | . . . Slashing . | . . . Piercing . | . . . Sneak Attacks . | . . . Combat Hostiles . | . . . Follow-up Attacks . | . . . Damage Inflicted 710 | . 345 365 Guns 356 | . 291 65 Cannons 351 | . 51 300 Explosions . | . . . Melee . | . . . Ramming 3 | . 3 . Kinetic 291 | . 291 . Thermal 416 | . 51 365 Explosive . | . . . Electromagnetic . | . . . Impact . | . . . Slashing . | . . . Piercing . | . . . Highest Corruption . | . . . Average Corruption . | . . . Corruption Purged . | . . . Corruption Blocked . | . . . Overload Shots . | . . . Overflow Damage . | . . . Projectiles . | . . . Explosions . | . . . Melee . | . . . Knockbacks . | . . . Impact . | . . . Kinetic . | . . . Secondary . | . . . Self-Inflicted Damage . | . . . Shots . | . . . Rammed . | . . . Targets Rammed 1 | . 1 . Kicked 1 | . 1 . Crushed . | . . . Highest Temperature 387 | . 66 387 Average Temperature 143 | . 23 182 Received Heat Transfer 543 | . 189 354 Effects 6 | . . 6 Shutdowns 1 | . . 1 Energy Bleed 1 | . . 1 Interference 3 | . . 3 Matter Decay 1 | . . 1 Siege Activations . | . . . Robots Corrupted . | . . . Combat Hostiles . | . . . Parts Fried . | . . . Impact Corruptions . | . . . Robots Melted . | . . . Combat Hostiles . | . . . Parts Melted 3 | . . 3 Heat Transferred 870 | . 111 759 Parts Sabotaged . | . . . Parts Stolen . | . . . Parts Stripped . | . . . Power Chain Reactions . | . . . Missiles Intercepted . | . . . Alert | -11 -10 -9 ------- Run | Scr Mat Mat Peak Influence 264 | . 264 192 Initial 43 | . . 43 Average 96 | . 93 118 Maximum Alert Level 1 | . 1 . Low Security (%) 84 | 100 73 100 Level 1 15 | . 26 . Level 2 . | . . . Level 3 . | . . . Level 4 . | . . . Level 5 . | . . . High Security . | . . . Max Security . | . . . Squads Dispatched 2 | . 1 1 Investigation 1 | . . 1 Extermination . | . . . Reinforcement 1 | . 1 . Assault . | . . . Garrison . | . . . Intercept . | . . . Searches Triggered . | . . . Construction Impeded . | . . . Haulers Reinforced . | . . . Active Scanning Responses . | . . . Cargo Convoy Interrupts . | . . . Stealth | -11 -10 -9 --------- Run | Scr Mat Mat Distress Signals 1 | . . 1 Communications Jammed . | . . . Distress Signals . | . . . Times Spotted 28 | . 13 15 Peak Tracking Total 10 | . 4 10 Tactical Retreats . | . . . Traps | -11 -10 -9 ------- Run | Scr Mat Mat Traps Triggered 1 | . . 1 Indirectly . | . . . Trap Hack Attempts . | . . . Triggered . | . . . Disarmed . | . . . Reprogrammed . | . . . Reused . | . . . Traps Extracted . | . . . Installed . | . . . Triggered . | . . . Machines | -11 -10 -9 ---------- Run | Scr Mat Mat Machines Disabled . | . . . Max in Single Turn . | . . . Machines Sabotaged . | . . . Garrisons Compromised . | . . . Overloaded Fab Kills . | . . . Hacking | -11 -10 -9 --------- Run | Scr Mat Mat Machines Accessed 4 | . 3 1 Terminals 3 | . 3 . Fabricators . | . . . Repair Stations . | . . . Recycling Units . | . . . Scanalyzers 1 | . . 1 Garrison Access . | . . . Total Hacks 7 | . 5 2 Successful 7 | . 5 2 Failed . | . . . Catastrophic . | . . . Database Lockouts . | . . . Manual . | . . . Terminals 5 | . 5 . Fabricators . | . . . Repair Stations . | . . . Recycling Units . | . . . Scanalyzers 2 | . . 2 Garrison Access . | . . . Terminal Hacks 5 | . 5 . Record 4 | . 4 . Recall Investigation 1 | . 1 . Fabricator Hacks . | . . . Repair Station Hacks . | . . . Recycling Unit Hacks . | . . . Scanalyzer 2 | . . 2 Insert Component 1 | . . 1 Analyze 1 | . . 1 Garrison Access Hacks . | . . . Unauthorized Hacks . | . . . Terminals . | . . . Fabricators . | . . . Repair Stations . | . . . Recycling Units . | . . . Scanalyzers . | . . . Garrison Access . | . . . Data Cores Recovered . | . . . Used . | . . . Hacking Detections 3 | . 2 1 Full Trace Events . | . . . Feedback Events . | . . . Feedback Blocked . | . . . Robot Schematics Acquired . | . . . Robots Built . | . . . Authchips . | . . . Time . | . . . Total Robot Build Rating . | . . . Part Schematics Acquired 1 | . . 1 Parts Built . | . . . Authchips . | . . . Time . | . . . Total Part Build Rating . | . . . Parts Repaired . | . . . Time . | . . . Parts Recycled . | . . . Recycled Matter . | . . . Retrieved Matter . | . . . Retrieved Components . | . . . Parts Scanalyzed 1 | . . 1 Part Schematics Acquired 1 | . . 1 Parts Damaged . | . . . Bothacking | -11 -10 -9 ------------ Run | Scr Mat Mat Used RIF Installer . | . . . Robots Hacked . | . . . Non-combat . | . . . Combat . | . . . Robot Hacks Applied . | . . . Relay Couplers Released . | . . . Fabnet Peak Effective % . | . . . Robots Rewired . | . . . Allies Hacked . | . . . Hacks Repelled . | . . . Allies | -11 -10 -9 -------- Run | Scr Mat Mat Total Allies . | . . . Largest Group . | . . . Highest-Rated Group . | . . . Highest-Rated Ally . | . . . Total Orders . | . . . Ally Attacks . | . . . Total Damage . | . . . Kills . | . . . Allies Corrupted . | . . . Allies Melted . | . . . Intel | -11 -10 -9 ------- Run | Scr Mat Mat Robot Analysis Total . | . . . Derelict Logs Recovered . | . . . Drone Launches . | . . . Drone Recoveries . | . . . Exploration | -11 -10 -9 ------------- Run | Scr Mat Mat Turns Passed 855 | 48 503 304 Spaces Moved 575 | 34 348 193 Core 13 | 9 . 4 Treads . | . . . Legs 562 | 25 348 189 Wheels . | . . . Hover . | . . . Flight . | . . . Fastest Speed 50 | 50 120 100 Average Speed 119 | 101 120 120 Slowest Speed 200 | 120 120 200 Overloaded Moves . | . . . Propulsion Burnouts . | . . . Robots Hopped . | . . . Cave-ins Triggered . | . . . Exploration Rate (%) 27 | 3 58 21 Regions Visited 2 Branch Regions . Pre-discovered Areas . | . . . Known Exits Taken . | . . . Unknown Exits Taken 2 | 1 1 . Scrap Searched . | . . . Spaces Dug . | . . . Terrain Destroyed . | . . . Melee . | . . . Projectile . | . . . AOE . | . . . Terrain Rammed . | . . . Walls Destroyed . | . . . Machines Disabled . | . . . Actions | -11 -10 -9 --------- Run | Scr Mat Mat Total 655 | 47 385 223 Wait 2 | 2 . . Move 573 | 33 347 193 Hop . | . . . Pick Up 15 | 6 6 3 Fast Attach . | . . . Attach 11 | 6 1 4 Detach . | . . . Swap 4 | . 3 1 Drop 3 | . 3 . Fire 46 | . 24 22 Melee . | . . . Ram . | . . . Kick 1 | . 1 . Crush . | . . . Escape Stasis . | . . . Rewire . | . . . Trap . | . . . Miscellaneous . | . . . Route ------- -11/Scrapyard -10/Materials (discovered 2 exits: *Mat / [*Min]) -9/Materials History --------- Turn | Location | Event 10 | -11/Scrapyard | Discovered new exit (range 15) 49 | -11/Scrapyard | Entered Materials 270 | -10/Materials | Discovered new exit (range 16) 313 | -10/Materials | Build established: Mutant 534 | -10/Materials | Discovered new exit (range 16) 552 | -10/Materials | Entered another Materials area 552 | -9/Materials | Evolved 2 slots: Power x1, Utility x1 846 | -9/Materials | Core integrity fell below 50% 854 | -9/Materials | Core integrity fell below 20% 856 | -9/Materials | Destroyed by Y-45 Defender with Beam Rifle Last Messages --------------- 00837_ Destroyed Flight Unit. 00837_ S-10 Pest destroyed. 00838_ R-06 Scavenger collects Flight Unit. 00839_ Overheating: Energy bleed (-7). 00840_ Spread Laser destroyed. 00840_ U-05 Engineer destroyed. 00840_ Beam Cannon destroyed. 00841_ Acquired Lgt. Ion Engine. 00843_ Lgt. Ion Engine destroyed. 00845_ S-10 Pest destroyed. 00848_ R-06 Scavenger collects Flight Unit. 00850_ Sml. Laser destroyed. 00852_ R-06 Scavenger collects Welding Torch. 00852_ Critical hit (Burn: +37). 00853_ Overheating: System interference. 00853_ Sml. Laser temporarily disabled. 00854_ Acquired Lgt. Assault Rifle. 00854_ Sml. Laser destroyed. 00855_ R-06 Scavenger collects Lgt. Ion Engine. 00855_ G-34 Mercenary destroyed. Map ----- +----------------------------------------------------+ | ?????????????????????????????????????????????????? | | ?????????????????????????????????????????????????? | | ?????????????????????????????????????????????????? | | ?????????????????????????????????????????????????? | | ?????????????????????????????????????????????????? | | ?????????????????????????????????????????????????? | | ?????????????????????????????????????????????????? | | ?????????????????????????????????????????????????? | | ?????????????????????????????????????????????????? | | ?????????????????????????????????????????????????? | | ?????????????????????????????????????????????????? | | ?????????????????????????????????????????????????? | | ?????????????????????????????????????????????????? | | ?????????????????????????????????????????????????? | | ?????????????????????????????????????????????????? | | ?????????????????????????????????????????????????? | | ?????????????????????????????????????????????????? | | ????????????????????????########?????????????????? | | ????????????????????????? #?????????????????? | | ????????????????????????? +?????????????????? | | ?????????????????????????? ""#?????????????????? | | ?????????????????????????? T"#?????????????????? | | ??????????????????????????? ""#?????????????????? | | ??????????????????????????? == ??????????????????? | | ????????? a ##########+####????????????????? | | ??????????????# Y @%g% #????????????????? | | ??????????????# =% s%Y #### +?????????? | | ??????????????# k rs= #?????????? | | ??????????????## #############r####### #?????????? | | ?????????????????????????# #?????????????? | | ?????????????????????????# #?????????????? | | ?????????????????????????# """ """ #?????????????? | | ?????????????????????????# """ """ #?????????????? | | ??????????????????????#### """ """ #?????????????? | | ??????????????????????+ + #?????????????? | | ???????????????#??????# ## ########??????? | | ???????????????# ###### ## """T""" # = #??????? | | ???????????????# ##/######### #??????? | | ??????????????## #???????# """ #??????? | | ??????????????#T T ######### """ #??????? | | ??????????????## / """ #??????? | | ???????????????# ########## #??????? | | ???????????????# !! ??########+####??????? | | ???????????????# !! #?????????? | | ???????????????# ####### ######### #?????????? | | ???????????????# ????????####???????# #?????????? | | ???????????????# ?????################ #?????????? | | ???????????????#?????## # ## #?????????? | | ?????????????????????? # """ ## #?######### | | ?????????????????????? T # """ ## #?# | +----------------------------------------------------+ Best States ------------- Heat Dissipation 28 Energy Generation 14 Energy Capacity 250 Matter Stores 300 Matter Capacity 300 Sight Range 16 Terrain Scan Density 10 Evasion (%) 55 Targeting Accuracy 5 Item Schematics ----------------- Spread Laser | -9/Materials | Scanalyzed Robot Schematics ------------------ None Fabricated ------------ Nothing Alien Tech Used ----------------- None Achievements -------------- None Challenges ------------ None Game ------ Seed StormGuidedWheel Manual? 0 Play Time 00:14:51 Cumulative 11.1 hours Start 2022.03.21 @ 16:11:28 End 2022.03.21 @ 16:23:40 Sessions 1 Manual Loads 0 Difficulty Rogue Special Mode None Game No. 28 Rogue 23 Adventurer 5 Explorer 0 Win Type - Total 7 Types 7/0/0/0/0/0/0/0/0 Lore% 4 Gallery% 15 Achievement% 8 Wizard Run 0 Options --------- ASCII 0 Keyboard 0 Movement Mouse Keybinds 0 Fullscreen 2 Font 24/Cog Map View 76x50 Tactical HUD 1 Map Filters NONE Filters NONE Steam 1 RUN: 6ae8cc5b-17ec-45be-bd3d-cbce33297f62